[Event "GER-chT Youth Countries 2018"]
[Site "Wurzburg"]
[Date "2018.10.03"]
[Round "2"]
[White "Schulze, Lara"]
[Black "Huber, Benedikt"]
[Result "1-0"]
[ECO "B48"]
[WhiteElo "2066"]
[BlackElo "2116"]
[Annotator "NA"]
[PlyCount "45"]
[EventDate "2018.10.02"]
[EventType "team-tourn"]
[EventCountry "GER"]
[SourceTitle "playchess.com"]
[Source "ChessBase"]
[SourceQuality "1"]
[TimeControl "40/5400+30:1800+30"]

1. e4 {[%emt 0:00:00]} c5 {[%emt 0:00:00]} 2. Nf3 {[%emt 0:00:00]} e6 {[%emt 0:00:00]} 3. d4 {[%emt 0:00:00]} cxd4 {[%emt 0:00:01]} 4. Nxd4 {[%emt 0:00:00]} Nc6 {[%emt 0:00:55]} 5. Nc3 {[%emt 0:00:00]} Qc7 {[%emt 0:00:17]} 6. Be3 {[%emt 0:00:10]} a6 {[%emt 0:00:48]} 7. Qf3 {[%emt 0:00:11]} d6 {[%emt 0:01:49]} 8. Nxc6 {[%emt 0:00:09]} Qxc6 {[%emt 0:01:17]} 9. g4 {[%emt 0:00:27]} Be7 {[%emt 0:03:46]} 10. g5 {[%emt 0:05:42]} h6 {[%emt 0:06:47]} 11. h4 {[%emt 0:01:19]} b5 {[%emt 0:06:43]} 12. a3 {[%emt 0:01:12]} Bb7 {[%emt 0:04:47]} 13. O-O-O {[%emt 0:03:33]} Rc8 {[%emt 0:06:10]} 14. Rg1 {[%emt 0:06:21]} hxg5 {[%emt 0:02:40]} 15. hxg5 {[%emt 0:00:48]} Bd8 {[%emt 0:14:21]} 16. Qg3 {[%emt 0:08:07]} Bc7 {[%emt 0:07:32]} 17. g6 {[%emt 0:06:48]} f6 {[%emt 0:01:23]} 18. Bh3 {[%emt 0:05:20]} Kd7 {[%emt 0:20:58]} 19. Nd5 {[%emt 0:08:07]} Re8 {[%emt 0:01:56]} 20. Nxc7 {[%emt 0:12:26]} Kxc7 {[%emt 0:00:16]} 21. Rd3 {[%emt 0:03:34]} Kb8 {[%emt 0:04:07]} 22. Rxd6 {[%emt 0:00:51]} Qc7 {[%emt 0:05:25]} 23. Bb6 {[%emt 0:02:03]} 1-0

[Event "GER-chT Youth Countries 2018"]
[Site "Wurzburg"]
[Date "2018.10.03"]
[Round "2"]
[White "Joeres, Stefan"]
[Black "Urban, Konstantin"]
[Result "0-1"]
[ECO "B90"]
[WhiteElo "2039"]
[BlackElo "2279"]
[Annotator "NA"]
[PlyCount "66"]
[EventDate "2018.10.02"]
[EventType "team-tourn"]
[EventCountry "GER"]
[SourceTitle "playchess.com"]
[Source "ChessBase"]
[SourceQuality "1"]
[TimeControl "40/5400+30:1800+30"]

1. e4 {[%emt 0:00:00]} c5 {[%emt 0:00:00]} 2. Nf3 {[%emt 0:00:00]} d6 {[%emt 0:00:00]} 3. d4 {[%emt 0:00:00]} cxd4 {[%emt 0:00:00]} 4. Nxd4 {[%emt 0:00:00]} Nf6 {[%emt 0:00:00]} 5. Nc3 {[%emt 0:00:00]} a6 {[%emt 0:00:08]} 6. a3 {[%emt 0:00:00]} g6 {[%emt 0:04:46]} 7. Be2 {[%emt 0:00:26]} Bg7 {[%emt 0:00:23]} 8. Be3 {[%emt 0:00:05]} O-O {[%emt 0:00:29]} 9. O-O {[%emt 0:00:31]} Bd7 {[%emt 0:03:45]} 10. f4 {[%emt 0:02:03]} Nc6 {[%emt 0:00:40]} 11. Nxc6 {[%emt 0:01:28]} Bxc6 {[%emt 0:00:08]} 12. Bf3 {[%emt 0:00:06]} Qc7 {[%emt 0:01:42]} 13. a4 {[%emt 0:06:55]} Qa5 {[%emt 0:14:20]} 14. Nd5 {[%emt 0:03:33]} Nxd5 {[%emt 0:07:24]} 15. exd5 {[%emt 0:00:22]} Bxa4 {[%emt 0:03:33]} 16. b3 {[%emt 0:07:14]} Qc3 {[%emt 0:00:12]} 17. Rxa4 {[%emt 0:00:12]} Qxe3+ {[%emt 0:00:05]} 18. Kh1 {[%emt 0:00:04]} b5 {[%emt 0:07:58]} 19. Re4 {[%emt 0:00:52]} Qa7 {[%emt 0:00:03]} 20. Qe2 {[%emt 0:00:55]} Bf6 {[%emt 0:00:54]} 21. g4 {[%emt 0:02:48]} h6 {[%emt 0:01:32]} 22. Rg1 {[%emt 0:00:33]} Qc7 {[%emt 0:04:41]} 23. Rg2 {[%emt 0:04:13]} Kg7 {[%emt 0:05:21]} 24. Re3 {[%emt 0:15:00]} Rfb8 {[%emt 0:02:43]} 25. g5 {[%emt 0:04:31]} hxg5 {[%emt 0:00:07]} 26. fxg5 {[%emt 0:00:04]} Be5 {[%emt 0:00:09]} 27. Be4 {[%emt 0:00:05]} Rh8 {[%emt 0:10:06]} 28. Rf3 {[%emt 0:02:04]} Raf8 {[%emt 0:05:19]} 29. Qf1 {[%emt 0:04:13]} Rh4 {[%emt 0:01:53]} 30. Rgf2 {[%emt 0:04:38]} f5 {[%emt 0:00:56]} 31. gxf6+ {[%emt 0:00:05]} exf6 {[%emt 0:00:21]} 32. Bd3 {[%emt 0:00:32]} Rfh8 {[%emt 0:00:22]} 33. h3 {[%emt 0:02:23]} Qd7 {[%emt 0:04:20]} 0-1

[Event "GER-chT Youth Countries 2018"]
[Site "Wurzburg"]
[Date "2018.10.03"]
[Round "2"]
[White "Fromm, Marius"]
[Black "Nguyen, Huy Dat"]
[Result "1/2-1/2"]
[ECO "A04"]
[WhiteElo "2022"]
[BlackElo "2194"]
[Annotator "NA"]
[PlyCount "62"]
[EventDate "2018.10.02"]
[EventType "team-tourn"]
[EventCountry "GER"]
[SourceTitle "playchess.com"]
[Source "ChessBase"]
[SourceQuality "1"]
[TimeControl "40/5400+30:1800+30"]

1. Nf3 {[%emt 0:00:00]} g6 {[%emt 0:00:00]} 2. c4 {[%emt 0:00:12]} Bg7 {[%emt 0:00:00]} 3. Nc3 {[%emt 0:00:32]} e5 {[%emt 0:00:17]} 4. g3 {[%emt 0:01:24]} d6 {[%emt 0:00:11]} 5. Bg2 {[%emt 0:00:07]} f5 {[%emt 0:00:10]} 6. O-O {[%emt 0:01:36]} Nf6 {[%emt 0:00:08]} 7. d4 {[%emt 0:00:36]} e4 {[%emt 0:06:34]} 8. Ng5 {[%emt 0:01:33]} h6 {[%emt 0:02:12]} 9. Nh3 {[%emt 0:00:05]} O-O {[%emt 0:04:40]} 10. f3 {[%emt 0:07:08]} exf3 {[%emt 0:05:27]} 11. Bxf3 {[%emt 0:02:43]} Nc6 {[%emt 0:01:37]} 12. e3 {[%emt 0:02:38]} Ne7 {[%emt 0:06:05]} 13. Nf4 {[%emt 0:03:43]} g5 {[%emt 0:02:55]} 14. Nfd5 {[%emt 0:03:04]} Nexd5 {[%emt 0:04:10]} 15. Nxd5 {[%emt 0:01:29]} c6 {[%emt 0:01:08]} 16. Nc3 {[%emt 0:02:02]} Bd7 {[%emt 0:04:21]} 17. Bd2 {[%emt 0:12:44]} Qc7 {[%emt 0:02:24]} 18. Qc2 {[%emt 0:01:04]} Rae8 {[%emt 0:01:52]} 19. Rae1 {[%emt 0:04:42]} Kh8 {[%emt 0:00:51]} 20. b3 {[%emt 0:05:19]} a6 {[%emt 0:18:36]} 21. Kh1 {[%emt 0:06:24]} Bc8 {[%emt 0:04:53]} 22. d5 Re5 {[%emt 0:12:26]} 23. dxc6 {[%emt 0:08:16]} bxc6 {[%emt 0:00:44]} 24. Nd1 {[%emt 0:09:54]} Ne4 {[%emt 0:08:33]} 25. Bc1 {[%emt 0:02:03]} c5 {[%emt 0:04:38]} 26. Bb2 {[%emt 0:01:03]} Ree8 {[%emt 0:00:27]} 27. Nc3 {[%emt 0:02:54]} Nxc3 {[%emt 0:01:39]} 28. Bxc3 {[%emt 0:00:08]} Bb7 {[%emt 0:01:59]} 29. Bxg7+ {[%emt 0:02:55]} Qxg7 {[%emt 0:00:08]} 30. Bxb7 {[%emt 0:00:18]} Qxb7+ {[%emt 0:00:12]} 31. Qg2 {[%emt 0:00:04]} Qxg2+ {[%emt 0:03:29]} 1/2-1/2

[Event "GER-chT Youth Countries 2018"]
[Site "Wurzburg"]
[Date "2018.10.03"]
[Round "2"]
[White "Leser, Katrin"]
[Black "Arakelian, Aik"]
[Result "0-1"]
[ECO "C72"]
[WhiteElo "2018"]
[BlackElo "1879"]
[Annotator "NA"]
[PlyCount "98"]
[EventDate "2018.10.02"]
[EventType "team-tourn"]
[EventCountry "GER"]
[SourceTitle "playchess.com"]
[Source "ChessBase"]
[SourceQuality "1"]
[TimeControl "40/5400+30:1800+30"]

1. e4 {[%emt 0:00:00]} e5 {[%emt 0:00:00]} 2. Nf3 {[%emt 0:00:00]} Nc6 {[%emt 0:00:00]} 3. Bb5 {[%emt 0:00:25]} a6 {[%emt 0:00:05]} 4. Ba4 {[%emt 0:00:03]} d6 {[%emt 0:00:07]} 5. O-O {[%emt 0:04:11]} Bd7 {[%emt 0:00:09]} 6. c3 {[%emt 0:01:19]} g6 {[%emt 0:00:14]} 7. d4 {[%emt 0:02:31]} Nf6 {[%emt 0:01:22]} 8. Re1 {[%emt 0:02:39]} Bg7 {[%emt 0:00:35]} 9. d5 {[%emt 0:07:21]} Ne7 {[%emt 0:00:19]} 10. Bxd7+ {[%emt 0:00:31]} Qxd7 {[%emt 0:00:12]} 11. c4 {[%emt 0:00:49]} O-O {[%emt 0:00:24]} 12. Nc3 {[%emt 0:01:08]} Nh5 {[%emt 0:02:36]} 13. Be3 {[%emt 0:08:33]} h6 {[%emt 0:01:20]} 14. Nd2 {[%emt 0:01:51]} f5 {[%emt 0:01:44]} 15. f3 {[%emt 0:03:02]} f4 {[%emt 0:05:18]} 16. Bf2 {[%emt 0:00:07]} g5 {[%emt 0:00:09]} 17. h3 {[%emt 0:07:00]} Nf6 {[%emt 0:00:45]} 18. c5 {[%emt 0:12:46]} h5 {[%emt 0:14:51]} 19. cxd6 {[%emt 0:06:07]} cxd6 {[%emt 0:00:17]} 20. Na4 {[%emt 0:04:34]} Rad8 {[%emt 0:00:24]} 21. Rc1 {[%emt 0:01:06]} Nc8 {[%emt 0:07:22]} 22. Nc4 {[%emt 0:04:21]} Qf7 {[%emt 0:04:25]} 23. Nab6 {[%emt 0:06:56]} Nxb6 {[%emt 0:01:23]} 24. Bxb6 {[%emt 0:03:26]} Rd7 {[%emt 0:00:07]} 25. Ba5 {[%emt 0:07:31]} Qg6 {[%emt 0:01:15]} 26. Bb4 {[%emt 0:04:09]} Ne8 {[%emt 0:00:56]} 27. Nb6 {[%emt 0:01:41]} Rdf7 {[%emt 0:02:07]} 28. Kf2 {[%emt 0:02:30]} g4 {[%emt 0:00:58]} 29. hxg4 {[%emt 0:00:37]} hxg4 {[%emt 0:00:09]} 30. Rg1 {[%emt 0:01:25]} Bf6 {[%emt 0:02:15]} 31. Nc4 {[%emt 0:01:38]} Bd8 {[%emt 0:03:20]} 32. Ba5 {[%emt 0:01:21]} Nc7 {[%emt 0:00:23]} 33. a4 {[%emt 0:00:29]} b5 {[%emt 0:01:13]} 34. axb5 {[%emt 0:00:31]} axb5 {[%emt 0:00:19]} 35. Nxd6 {[%emt 0:03:04]} Qxd6 {[%emt 0:01:02]} 36. Rc6 {[%emt 0:00:05]} Qd7 {[%emt 0:01:14]} 37. Rh1 {[%emt 0:00:28]} Nxd5 {[%emt 0:01:56]} 38. Rg6+ {[%emt 0:01:00]} Rg7 {[%emt 0:00:20]} 39. Rxg7+ {[%emt 0:00:13]} Kxg7 {[%emt 0:00:09]} 40. Bxd8 {[%emt 0:00:31]} Qa7+ {[%emt 0:00:10]} 41. Ke2 {[%emt 0:30:20]} Qe3+ {[%emt 0:30:18]} 42. Kf1 {[%emt 0:00:05]} g3 {[%emt 0:00:44]} 43. Qc2 {[%emt 0:00:00]} Qxf3+ {[%emt 0:00:00]} 44. gxf3 {[%emt 0:00:00]} Ne3+ {[%emt 0:00:00]} 45. Kg1 {[%emt 0:00:00]} Nxc2 {[%emt 0:00:00]} 46. Bc7 {[%emt 0:00:00]} Re8 {[%emt 0:00:00]} 47. Rh5 {[%emt 0:00:00]} Ne1 {[%emt 0:00:00]} 48. Kf1 {[%emt 0:00:00]} Nxf3 {[%emt 0:00:00]} 49. Kg2 {[%emt 0:00:00]} Kg6 {[%emt 0:00:00]} 0-1

[Event "GER-chT Youth Countries 2018"]
[Site "Wurzburg"]
[Date "2018.10.03"]
[Round "2"]
[White "Wu, Leon"]
[Black "Bui, Ngoc Han Julia"]
[Result "0-1"]
[ECO "B96"]
[WhiteElo "2009"]
[BlackElo "1876"]
[Annotator "NA RC"]
[PlyCount "106"]
[EventDate "2018.10.02"]
[EventType "team-tourn"]
[EventCountry "GER"]
[SourceTitle "playchess.com"]
[Source "ChessBase"]
[SourceQuality "1"]
[TimeControl "40/5400+30:1800+30"]

1. e4 {[%emt 0:00:00]} c5 {[%emt 0:00:00]} 2. Nf3 {[%emt 0:00:00]} d6 {[%emt 0:00:00]} 3. d4 {[%emt 0:00:00]} cxd4 {[%emt 0:00:00]} 4. Nxd4 {[%emt 0:00:00]} Nf6 {[%emt 0:00:00]} 5. Nc3 {[%emt 0:00:13]} a6 {[%emt 0:00:18]} 6. Bg5 {[%emt 0:00:28]} e6 {[%emt 0:00:20]} 7. f4 {[%emt 0:00:37]} h6 {[%emt 0:00:20]} 8. Bxf6 {[%emt 0:00:30]} Qxf6 {[%emt 0:00:13]} 9. Qd2 {[%emt 0:00:38]} g5 {[%emt 0:01:18]} 10. f5 {[%emt 0:01:24]} Nc6 {[%emt 0:00:16]} 11. Nb3 {[%emt 0:03:46]} g4 {[%emt 0:14:33]} 12. O-O-O {[%emt 0:05:24]} Qg5 {[%emt 0:02:15]} 13. Be2 {[%emt 0:07:53]} Qxd2+ 14. Nxd2 {[%emt 0:00:42]} Ne5 {[%emt 0:07:09]} 15. Nc4 {[%emt 0:03:54]} Nxc4 {[%emt 0:02:12]} 16. Bxc4 {[%emt 0:00:17]} b5 {[%emt 0:06:04]} 17. Bb3 {[%emt 0:02:08]} Be7 {[%emt 0:04:40]} 18. Rhf1 {[%emt 0:02:29]} Bg5+ {[%emt 0:05:54]} 19. Kb1 {[%emt 0:01:14]} Ke7 {[%emt 0:01:59]} 20. g3 {[%emt 0:04:26]} Bb7 {[%emt 0:03:13]} 21. Rfe1 {[%emt 0:01:34]} Rhd8 {[%emt 0:04:51]} 22. Ne2 {[%emt 0:04:19]} exf5 {[%emt 0:25:15]} 23. exf5 {[%emt 0:02:01]} Kf8 {[%emt 0:04:06]} 24. Nc3 {[%emt 0:06:17]} Bf3 {[%emt 0:00:59]} 25. Rd3 {[%emt 0:02:01]} Re8 {[%emt 0:02:22]} 26. Rg1 {[%emt 0:00:55]} Be3 {[%emt 0:01:51]} 27. Rf1 {[%emt 0:01:07]} Bg2 {[%emt 0:03:11]} 28. Rfd1 {[%emt 0:01:03]} Bf3 {[%emt 0:00:09]} 29. Rf1 {[%emt 0:02:06]} Bg2 {[%emt 0:00:06]} 30. Rfd1 {[%emt 0:01:01]} Bf3 {[%emt 0:00:07]} 31. Bd5 {[%emt 0:08:14]} Bxd1 {[%emt 0:01:15]} 32. Nxd1 {[%emt 0:02:08]} Bc5 {[%emt 0:01:11]} 33. Bxa8 {[%emt 0:00:50]} Rxa8 {[%emt 0:00:03]} 34. c3 {[%emt 0:01:47]} Ke7 {[%emt 0:01:35]} 35. Ne3 {[%emt 0:01:06]} Bxe3 {[%emt 0:01:17]} 36. Rxe3+ {[%emt 0:00:12]} Kf6 {[%emt 0:00:10]} 37. Rd3 {[%emt 0:00:34]} Ke5 {[%emt 0:02:16]} 38. Rd4 {[%emt 0:00:36]} h5 {[%emt 0:00:42]} 39. Kc2 {[%emt 0:00:14]} Rd8 {[%emt 0:03:27]} 40. Rf4 {[%emt 0:00:59]} d5 {[%emt 0:01:41]} 41. Kd3 {[%emt 0:32:47]} Rd6 {[%emt 0:03:12]} 42. a4 {[%emt 0:00:00]} bxa4 {[%emt 0:01:50]} 43. Rxa4 {[%emt 0:00:00]} Rb6 {[%emt 0:04:26]} 44. b4 {[%emt 0:00:00]} Rc6 {[%emt 0:01:10]} 45. Ra5 {[%emt 0:00:00]} Kd6 {[%emt 0:03:56]} 46. Kd4 {[%emt 0:00:00]} Rc4+ {[%emt 0:00:13]} 47. Kd3 {[%emt 0:00:00]} Rc6 {[%emt 0:00:17]} 48. Ke3 {[%emt 0:02:36]} Rxc3+ {[%emt 0:02:35]} 49. Kf4 {[%emt 0:02:16]} f6 {[%emt 0:03:09]} 50. Rxa6+ {[%emt 0:12:40]} Ke7 51. Re6+ {[%emt 0:03:06]} Kf7 {[%emt 0:00:32]} 52. Re3 {[%emt 0:00:30]} Rc4+ {[%emt 0:00:07]} 53. Re4 {[%emt 0:00:10]} Rxe4# {[%emt 0:00:06]} 0-1

[Event "GER-chT Youth Countries 2018"]
[Site "Wurzburg"]
[Date "2018.10.03"]
[Round "2"]
[White "Keyser, Robin"]
[Black "Noeldner, Julian"]
[Result "1-0"]
[ECO "E06"]
[WhiteElo "1999"]
[BlackElo "2024"]
[Annotator "NA"]
[PlyCount "77"]
[EventDate "2018.10.02"]
[EventType "team-tourn"]
[EventCountry "GER"]
[SourceTitle "playchess.com"]
[Source "ChessBase"]
[SourceQuality "1"]
[TimeControl "40/5400+30:1800+30"]

1. d4 {[%emt 0:00:00]} Nf6 {[%emt 0:00:11]} 2. c4 {[%emt 0:00:00]} e6 {[%emt 0:01:54]} 3. g3 {[%emt 0:00:00]} d5 {[%emt 0:00:06]} 4. Nf3 {[%emt 0:00:00]} Be7 {[%emt 0:00:08]} 5. Bg2 {[%emt 0:00:50]} O-O {[%emt 0:00:06]} 6. O-O {[%emt 0:00:45]} dxc4 {[%emt 0:00:14]} 7. Qc2 {[%emt 0:00:42]} a6 {[%emt 0:00:14]} 8. Qxc4 {[%emt 0:00:55]} b5 {[%emt 0:00:03]} 9. Qc2 {[%emt 0:00:05]} Bb7 {[%emt 0:00:04]} 10. Bd2 {[%emt 0:00:08]} Be4 {[%emt 0:00:27]} 11. Qc1 {[%emt 0:00:06]} c6 {[%emt 0:00:22]} 12. Rd1 {[%emt 0:02:23]} h6 {[%emt 0:09:12]} 13. Nc3 {[%emt 0:03:26]} Bh7 {[%emt 0:00:33]} 14. Bf4 {[%emt 0:01:36]} Nbd7 {[%emt 0:02:07]} 15. Ne5 {[%emt 0:02:07]} Nxe5 {[%emt 0:02:10]} 16. dxe5 {[%emt 0:00:14]} Nd5 {[%emt 0:01:48]} 17. h4 {[%emt 0:08:34]} Qb6 {[%emt 0:00:46]} 18. Ne4 {[%emt 0:02:08]} Rfd8 {[%emt 0:03:11]} 19. Nd6 {[%emt 0:03:20]} Ra7 {[%emt 0:03:06]} 20. e4 {[%emt 0:03:52]} Nxf4 {[%emt 0:01:01]} 21. Qxf4 {[%emt 0:00:17]} Bf8 {[%emt 0:00:09]} 22. b4 {[%emt 0:04:09]} Rad7 {[%emt 0:02:53]} 23. Rd2 {[%emt 0:04:06]} c5 {[%emt 0:03:49]} 24. Qe3 {[%emt 0:00:47]} Rc7 {[%emt 0:12:08]} 25. Rc1 {[%emt 0:07:38]} a5 {[%emt 0:03:32]} 26. bxc5 {[%emt 0:00:42]} Qc6 {[%emt 0:00:11]} 27. Bf1 {[%emt 0:04:24]} Rb8 {[%emt 0:00:58]} 28. Rb2 {[%emt 0:07:48]} b4 {[%emt 0:01:15]} 29. a3 {[%emt 0:00:50]} Qa4 {[%emt 0:04:56]} 30. axb4 {[%emt 0:02:16]} axb4 {[%emt 0:02:01]} 31. Qb3 {[%emt 0:00:34]} Qc6 {[%emt 0:05:17]} 32. Qc4 {[%emt 0:00:48]} b3 {[%emt 0:03:17]} 33. Rxb3 {[%emt 0:01:23]} Rxb3 {[%emt 0:00:09]} 34. Qxb3 {[%emt 0:00:05]} Bxe4 {[%emt 0:00:29]} 35. Qb8 {[%emt 0:02:59]} Qd7 {[%emt 0:05:49]} 36. Nxe4 {[%emt 0:00:11]} Rb7 {[%emt 0:01:42]} 37. c6 {[%emt 0:00:52]} Qxc6 {[%emt 0:00:12]} 38. Qxf8+ {[%emt 0:00:06]} Kxf8 {[%emt 0:00:04]} 39. Rxc6 {[%emt 0:00:06]} 1-0

[Event "GER-chT Youth Countries 2018"]
[Site "Wurzburg"]
[Date "2018.10.03"]
[Round "2"]
[White "Hommer, Jeremy"]
[Black "Kunisch, Nina"]
[Result "1-0"]
[ECO "D00"]
[WhiteElo "1983"]
[BlackElo "1740"]
[Annotator "NA RC"]
[PlyCount "153"]
[EventDate "2018.10.02"]
[EventType "team-tourn"]
[EventCountry "GER"]
[SourceTitle "playchess.com"]
[Source "ChessBase"]
[SourceQuality "1"]
[TimeControl "40/5400+30:1800+30"]

1. d4 {[%emt 0:00:00]} d5 {[%emt 0:00:00]} 2. Bf4 {[%emt 0:00:00]} Nf6 {[%emt 0:00:00]} 3. e3 {[%emt 0:00:00]} c5 {[%emt 0:00:17]} 4. c3 {[%emt 0:01:29]} Nc6 {[%emt 0:00:33]} 5. Nd2 {[%emt 0:00:33]} e6 {[%emt 0:01:10]} 6. Ngf3 {[%emt 0:01:01]} cxd4 {[%emt 0:01:36]} 7. exd4 {[%emt 0:00:25]} Nh5 {[%emt 0:00:35]} 8. Bg5 {[%emt 0:02:41]} f6 {[%emt 0:00:12]} 9. Be3 {[%emt 0:13:39]} Bd6 {[%emt 0:00:37]} 10. Nh4 {[%emt 0:06:45]} g6 {[%emt 0:04:41]} 11. g3 {[%emt 0:19:22]} O-O {[%emt 0:06:13]} 12. Be2 {[%emt 0:08:46]} Ng7 {[%emt 0:02:02]} 13. Bf3 {[%emt 0:00:35]} Ne7 {[%emt 0:15:14]} 14. Nb3 {[%emt 0:03:02]} Ngf5 {[%emt 0:12:47]} 15. Nxf5 {[%emt 0:00:14]} Nxf5 {[%emt 0:00:13]} 16. O-O {[%emt 0:00:46]} h5 {[%emt 0:05:23]} 17. Kh1 {[%emt 0:04:19]} Qc7 {[%emt 0:04:55]} 18. Qd3 {[%emt 0:03:31]} b6 {[%emt 0:09:47]} 19. Rg1 {[%emt 0:02:41]} Kf7 {[%emt 0:03:45]} 20. Nc1 {[%emt 0:04:24]} Bb7 {[%emt 0:05:50]} 21. Ne2 {[%emt 0:01:15]} Rh8 {[%emt 0:00:47]} 22. Bf4 {[%emt 0:01:12]} g5 {[%emt 0:03:43]} 23. Bxd6 {[%emt 0:00:34]} Qxd6 {[%emt 0:00:13]} 24. Bg2 {[%emt 0:05:38]} a5 {[%emt 0:01:48]} 25. Rae1 {[%emt 0:02:33]} Ba6 {[%emt 0:00:37]} 26. Qd2 {[%emt 0:01:07]} h4 {[%emt 0:04:23]} 27. g4 {[%emt 0:02:16]} h3 {[%emt 0:00:50]} 28. gxf5 {[%emt 0:00:55]} hxg2+ {[%emt 0:00:03]} 29. Rxg2 {[%emt 0:00:17]} exf5 {[%emt 0:00:22]} 30. f4 {[%emt 0:03:38]} g4 {[%emt 0:02:07]} 31. Ng3 {[%emt 0:01:28]} Kg6 {[%emt 0:01:21]} 32. Nxf5 {[%emt 0:03:56]} Qd7 {[%emt 0:03:19]} 33. Qc2 {[%emt 0:01:46]} Kh5 {[%emt 0:03:35]} 34. Ne7 {[%emt 0:04:17]} Rh6 {[%emt 0:01:12]} 35. f5 {[%emt 0:01:02]} Rh7 {[%emt 0:02:41]} 36. Ng6 {[%emt 0:01:16]} Re8 {[%emt 0:01:22]} 37. Rxe8 {[%emt 0:00:28]} Qxe8 {[%emt 0:00:02]} 38. Qf2 {[%emt 0:00:08]} Kh6 {[%emt 0:01:16]} 39. Rxg4 {[%emt 0:00:40]} Kg7 {[%emt 0:02:50]} 40. Qg3 {[%emt 0:00:45]} Be2 {[%emt 0:00:45]} 41. Ne5+ {[%emt 0:07:45]} Bxg4 {[%emt 0:01:15]} 42. Qxg4+ {[%emt 0:00:01]} Kf8 {[%emt 0:02:53]} 43. Ng6+ {[%emt 0:00:41]} Kf7 {[%emt 0:00:46]} 44. Kg2 {[%emt 0:06:58]} Qe4+ {[%emt 0:02:42]} 45. Qxe4 {[%emt 0:00:27]} dxe4 {[%emt 0:00:04]} 46. Nf4 {[%emt 0:05:03]} Rh4 {[%emt 0:05:30]} 47. Kg3 {[%emt 0:00:24]} Rh8 {[%emt 0:00:54]} 48. h4 {[%emt 0:00:39]} Rg8+ {[%emt 0:05:02]} 49. Ng6 {[%emt 0:00:12]} Re8 {[%emt 0:00:22]} 50. Nf4 {[%emt 0:02:33]} e3 {[%emt 0:01:07]} 51. Kf3 {[%emt 0:00:57]} b5 {[%emt 0:01:49]} 52. Ne6 {[%emt 0:03:11]} Rh8 {[%emt 0:01:27]} 53. d5 {[%emt 0:01:21]} Ke7 {[%emt 0:02:49]} 54. Nf4 {[%emt 0:00:38]} Kd6 {[%emt 0:00:16]} 55. Kxe3 {[%emt 0:01:12]} Rxh4 {[%emt 0:00:13]} 56. b3 {[%emt 0:00:56]} Rh2 {[%emt 0:01:11]} 57. c4 {[%emt 0:00:50]} bxc4 58. bxc4 Rxa2 {[%emt 0:01:22]} 59. Kd4 {[%emt 0:00:37]} Rf2 {[%emt 0:02:11]} 60. c5+ {[%emt 0:02:05]} Kd7 {[%emt 0:00:32]} 61. Ne6 {[%emt 0:00:49]} Ke7 {[%emt 0:05:42]} 62. d6+ {[%emt 0:00:17]} Kd7 {[%emt 0:02:04]} 63. Ke4 {[%emt 0:03:11]} a4 {[%emt 0:00:59]} 64. Nd4 {[%emt 0:01:02]} a3 {[%emt 0:00:54]} 65. Kd5 {[%emt 0:00:46]} Rxf5+ {[%emt 0:00:45]} 66. Nxf5 {[%emt 0:00:14]} a2 {[%emt 0:00:01]} 67. c6+ {[%emt 0:00:10]} Ke8 {[%emt 0:00:02]} 68. d7+ {[%emt 0:00:42]} Kf7 {[%emt 0:01:07]} 69. d8=Q {[%emt 0:00:23]} a1=Q {[%emt 0:00:04]} 70. Nd4 {[%emt 0:00:21]} Qa2+ {[%emt 0:00:19]} 71. Kd6 {[%emt 0:00:25]} Qa3+ {[%emt 0:00:16]} 72. Kd5 {[%emt 0:00:30]} Qa2+ {[%emt 0:00:15]} 73. Kc5 {[%emt 0:00:11]} Qa3+ {[%emt 0:00:16]} 74. Kb6 {[%emt 0:00:18]} Qb2+ {[%emt 0:01:24]} 75. Nb5 {[%emt 0:00:05]} Qf2+ {[%emt 0:00:31]} 76. Qd4 {[%emt 0:00:05]} Qf5 {[%emt 0:01:00]} 77. Qd7+ {[%emt 0:00:16]} 1-0

[Event "GER-chT Youth Countries 2018"]
[Site "Wurzburg"]
[Date "2018.10.03"]
[Round "2"]
[White "Halas, Julia"]
[Black "Riegel, Arinna"]
[Result "1-0"]
[ECO "D35"]
[WhiteElo "1972"]
[BlackElo "1881"]
[Annotator "NA"]
[PlyCount "91"]
[EventDate "2018.10.02"]
[EventType "team-tourn"]
[EventCountry "GER"]
[SourceTitle "playchess.com"]
[Source "ChessBase"]
[SourceQuality "1"]
[TimeControl "40/5400+30:1800+30"]

1. d4 {[%emt 0:00:00]} d5 {[%emt 0:00:00]} 2. c4 {[%emt 0:00:00]} e6 {[%emt 0:00:02]} 3. Nc3 {[%emt 0:00:00]} Nf6 {[%emt 0:00:05]} 4. cxd5 {[%emt 0:00:00]} exd5 {[%emt 0:00:05]} 5. Bg5 {[%emt 0:00:00]} Be7 {[%emt 0:00:10]} 6. e3 {[%emt 0:00:08]} O-O {[%emt 0:00:24]} 7. Bd3 {[%emt 0:00:11]} h6 {[%emt 0:00:04]} 8. Bh4 {[%emt 0:01:23]} b6 {[%emt 0:00:49]} 9. Nge2 {[%emt 0:08:27]} Bb7 {[%emt 0:00:39]} 10. Qc2 {[%emt 0:01:31]} Nbd7 {[%emt 0:01:34]} 11. O-O {[%emt 0:00:47]} c5 {[%emt 0:06:22]} 12. f3 {[%emt 0:10:18]} Re8 {[%emt 0:05:47]} 13. Rad1 {[%emt 0:12:54]} cxd4 {[%emt 0:25:44]} 14. Nxd4 {[%emt 0:05:16]} Bc5 {[%emt 0:00:38]} 15. Bf2 {[%emt 0:04:04]} Ne5 {[%emt 0:03:23]} 16. Bf5 {[%emt 0:08:54]} g6 {[%emt 0:07:36]} 17. Bh3 {[%emt 0:00:26]} Qe7 {[%emt 0:02:33]} 18. Rfe1 {[%emt 0:03:08]} Bc8 {[%emt 0:09:00]} 19. Bh4 {[%emt 0:15:21]} g5 {[%emt 0:09:34]} 20. Bxc8 {[%emt 0:00:25]} Raxc8 {[%emt 0:00:01]} 21. Nf5 {[%emt 0:00:23]} Qf8 {[%emt 0:00:15]} 22. Bf2 {[%emt 0:04:28]} Red8 {[%emt 0:02:38]} 23. Qb3 {[%emt 0:01:38]} Nc4 {[%emt 0:03:40]} 24. Nb5 {[%emt 0:05:06]} a6 {[%emt 0:06:06]} 25. Nbd4 {[%emt 0:00:57]} Nd6 {[%emt 0:05:41]} 26. Qd3 {[%emt 0:03:02]} b5 {[%emt 0:04:19]} 27. Re2 {[%emt 0:02:19]} Nxf5 {[%emt 0:01:44]} 28. Nxf5 {[%emt 0:01:59]} Rd7 {[%emt 0:02:44]} 29. Bg3 {[%emt 0:01:58]} Rcd8 {[%emt 0:01:39]} 30. Qc3 {[%emt 0:05:56]} Be7 {[%emt 0:00:39]} 31. Be5 {[%emt 0:00:30]} Nh5 {[%emt 0:00:50]} 32. g4 {[%emt 0:01:02]} Rc8 {[%emt 0:00:38]} 33. Qd3 {[%emt 0:01:15]} f6 {[%emt 0:00:17]} 34. Bd4 {[%emt 0:00:20]} Ng7 {[%emt 0:00:37]} 35. Nxh6+ {[%emt 0:00:10]} Kh8 {[%emt 0:00:04]} 36. Qg6 {[%emt 0:00:32]} Bd8 {[%emt 0:00:42]} 37. Nf5 {[%emt 0:00:49]} Rcc7 38. Nxg7 {[%emt 0:01:31]} Qxg7 {[%emt 0:00:56]} 39. Qe8+ {[%emt 0:00:59]} Kh7 {[%emt 0:00:07]} 40. Qh5+ {[%emt 0:00:40]} Kg8 {[%emt 0:00:06]} 41. Qe8+ {[%emt 0:30:34]} Kh7 {[%emt 0:30:08]} 42. Qe6 {[%emt 0:00:00]} a5 {[%emt 0:00:00]} 43. Red2 {[%emt 0:00:00]} Be7 {[%emt 0:00:00]} 44. Bb6 {[%emt 0:00:00]} Rb7 {[%emt 0:00:00]} 45. Rxd5 {[%emt 0:00:00]} Rxd5 {[%emt 0:00:00]} 46. Rxd5 {[%emt 0:00:00]} 1-0